Cogmind - Beta 15 @@@ ROGUE MODE // 2025.07.21 @ 22:53:55 Player: Rune Result: Destroyed by G-34 Mercenary with Small Laser Performance ------------- Evolutions (1) 500 Regions Visited (2) 400 Robots Destroyed (21) 105 Value Destroyed (431) 431 Prototype IDs (2) 40 Alien Tech Used (0) 0 Bonus (0) 0 TOTAL SCORE: 1476 Bonus ------- None Cogmind --------- Core Integrity 0/400 Matter 300/300 Energy 100/100 System Corruption 6% Temperature Cool (6) Movement Core (100) Ox1 Location -9/Materials Parts ------- > --- POWER (1) -------- (None) > --- PROPULSION (2) --- (None) > --- UTILITY (3) ------ Small Storage Unit > --- WEAPON (3) ------- (None) > --- INVENTORY (8) ---- Improved Ion Engine Peak State ------------ > --- POWER ------------ Light Ion Engine > --- PROPULSION ------- Carbon-fiber Leg Carbon-fiber Leg > --- UTILITY ---------- Small Storage Unit Improved Targeting Computer Core Shielding > --- WEAPON ----------- Beam Rifle Light Assault Rifle Grenade Launcher > --- INVENTORY -------- Improved Ion Engine EM Pulse Gun Small Laser [Rating: 15] Favorites ----------- Power Light Ion Engine Engine Light Ion Engine Propulsion Aluminum Leg Leg Aluminum Leg Utility Small Storage Unit Storage Small Storage Unit Processor Improved Targeting Computer Protection Core Shielding Weapon Light Assault Rifle Energy Gun Small Laser Ballistic Gun Light Assault Rifle Launcher Grenade Launcher Build | -11 -10 -9 ------- Run | Yrd Mat Mat Slots Evolved 2 | . . 2 Power . | . . . Propulsion . | . . . Utility 1 | . . 1 Weapon 1 | . . 1 Parts Attached 19 | 6 4 9 Power 3 | 1 1 1 Engine 3 | 1 1 1 Core . | . . . Reactor . | . . . Propulsion 6 | 2 1 3 Treads . | . . . Leg 6 | 2 1 3 Wheel . | . . . Hover . | . . . Flight . | . . . Utility 3 | 1 . 2 Device . | . . . Storage 1 | 1 . . Processor 1 | . . 1 Hackware . | . . . Protection 1 | . . 1 Artifact . | . . . Weapon 7 | 2 2 3 Energy Gun 4 | 1 1 2 Energy Cannon . | . . . Ballistic Gun 2 | 1 1 . Ballistic Cannon . | . . . Launcher 1 | . . 1 Special Weapon . | . . . Impact Weapon . | . . . Slashing Weapon . | . . . Piercing Weapon . | . . . Special Melee Weapon . | . . . Unidentified Prototypes . | . . . Parts Lost 12 | . 1 11 Power 2 | . . 2 Propulsion 2 | . . 2 Utility 2 | . . 2 Weapon 6 | . 1 5 Highest Loss Streak 9 | . 1 9 To Critical Strikes . | . . . Average Backups 2 | . 2 2 Power . | . . 1 Propulsion . | . . . Utility . | . . . Weapon 1 | . 1 1 Tool/Special . | . . . Unused Backups 3 | . . 3 Power 1 | . . 1 Propulsion 2 | . . 2 Utility . | . . . Weapon . | . . . Tool/Special . | . . . Average Slot Usage (%) 83 | . 81 84 Engine 10 | . 14 8 Leg 21 | . 27 19 Storage 11 | . 14 11 Processor 6 | . . 9 Protection 5 | . . 6 Energy Gun 11 | . 13 11 Ballistic Gun 14 | . 12 15 Launcher 1 | . . 2 Peak Build Rating 15 | 6 6 15 Average Rating 8 | 4 5 10 On Entrance 4 | . 6 6 Naked Turns . | . . . Heaviest Build 16 | 13 13 16 Greatest Support 30 | 20 20 30 Greatest Overweight (x) 3 | 2 . 3 Average Overweight (x) . | . . . Largest Inventory Capacity 8 | 8 8 8 Average Capacity 7 | 6 8 8 Most Carried 7 | 2 6 7 Average Carried 2 | . 2 2 Final Capacity 8 | 8 8 8 Final Carried 3 | 1 3 1 Class Distribution -------------------- 59% | Gunner 40% | Mutant Dominant Class ---------------- Mutant | -10/Materials Gunner | -9/Materials Resources | -11 -10 -9 ----------- Run | Yrd Mat Mat Matter Collected 519 | 208 98 213 Remotely . | . . . Salvage Created 589 | . 83 506 Parts 45 | . 3 42 Haulers Intercepted . | . . . Recyclers Shooed 1 | . 1 . Parts Field Recycled . | . . . Retrieved Matter . | . . . Parts Self-Destructed . | . . . Prevented . | . . . Kills | -11 -10 -9 ------- Run | Yrd Mat Mat Combat Hostiles Destroyed 12 | . 3 9 Guns 11 | . 2 9 AOE 1 | . 1 . Classes Destroyed 8 | . 2 6 Worker 3 | . . 3 Builder 2 | . . 2 Tunneler 1 | . . 1 Watcher 3 | . . 3 Swarmer 5 | . 2 3 Grunt 4 | . 1 3 Duelist 1 | . . 1 Sentry 2 | . . 2 Best Kill Streak 6 | . 2 6 Combat Bots Only 4 | . 2 4 Max Kills in Single Turn 2 | . 1 2 Gunslinging . | . . . Exploded 1 | . 1 . Melee . | . . . Uniques/NPCs Destroyed . | . . . Combat | -11 -10 -9 -------- Run | Yrd Mat Mat Hostile Shots Fired 158 | . 40 118 Missed 44 | . 12 32 Hits 114 | . 28 86 Melee 4 | . . 4 Projectile 110 | . 28 82 Critical Strikes 3 | . . 3 Actively Blocked 1 | . . 1 Part Disruptions 2 | . . 2 Damage Taken 1458 | . 287 1171 Core 429 | . 25 404 Absorbed by Shields . | . . . Redirected to Shielding 50 | . . 50 Core Remaining (%) 95 | 100 90 . Volleys Fired 76 | . 17 59 Largest 3 | . 2 3 Hottest 116 | . 60 116 Shots Fired 155 | . 34 121 Gun 153 | . 34 119 Cannon . | . . . Launcher 2 | . . 2 Special . | . . . Kinetic 67 | . 17 50 Thermal 68 | . 10 58 Explosive 2 | . . 2 Electromagnetic 18 | . 7 11 Robot Hit Streak 8 | . 7 8 Robot Miss Streak 6 | . 6 6 Penetration Max . | . . . Secondary Targets 2 | . . 2 Max Gunslinging Chain 1 | . . 1 Shots Hit Robots 83 | . 18 65 Core Hits 36 | . 5 31 Critical Kills . | . . . Critical Parts Destroyed . | . . . Critical Strikes 1 | . . 1 Burn 1 | . . 1 Melee Attacks . | . . . Impact . | . . . Slashing . | . . . Piercing . | . . . Sneak Attacks . | . . . Combat Hostiles . | . . . Follow-up Attacks . | . . . Damage Inflicted 1208 | . 201 1007 Guns 878 | . 181 697 Cannons . | . . . Explosions 318 | . 20 298 Melee . | . . . Ramming 12 | . . 12 Kinetic 271 | . 55 216 Thermal 609 | . 62 547 Explosive 72 | . . 72 Electromagnetic 244 | . 84 160 Impact . | . . . Slashing . | . . . Piercing . | . . . Highest Corruption 6 | . 2 6 Average Corruption 3 | . 1 3 Corruption Purged . | . . . Corruption Blocked . | . . . Effects 16 | . 4 12 Message Errors 2 | . . 2 Matter Fused 6 | . 2 4 Heat Flow Errors 1 | . . 1 Energy Discharges 5 | . . 5 Parts Rejected 1 | . 1 . Data Loss (minor) 1 | . 1 . Overload Shots . | . . . Overflow Damage 18 | . 18 . Projectiles . | . . . Explosions 18 | . 18 . Melee . | . . . Knockbacks . | . . . Impact . | . . . Kinetic . | . . . Secondary . | . . . Self-Inflicted Damage 93 | . 31 62 Shots 4 | . 1 3 Rammed 7 | . . 7 Targets Rammed 8 | . . 8 Kicked 1 | . . 1 Crushed . | . . . Highest Temperature 354 | . 88 354 Average Temperature 69 | . 24 81 Received Heat Transfer 462 | . 66 396 Siege Activations . | . . . Martial Activations . | . . . Shielding Activations . | . . . Robots Disrupted . | . . . Combat Hostiles . | . . . Robots Corrupted . | . . . Combat Hostiles . | . . . Parts Fried . | . . . Impact Corruptions . | . . . Robots Melted . | . . . Combat Hostiles . | . . . Parts Melted 1 | . 1 . Heat Transferred 1267 | . 100 1167 Parts Sabotaged . | . . . Parts Stolen . | . . . Parts Stripped . | . . . Power Chain Reactions 3 | . 1 2 Alert | -11 -10 -9 ------- Run | Yrd Mat Mat Maximum Alert Level 1 | . . 1 Low Security (%) 97 | 100 100 96 Level 1 2 | . . 3 Level 2 . | . . . Level 3 . | . . . Level 4 . | . . . Level 5 . | . . . High Security . | . . . Max Security . | . . . Peak Influence 219 | . 40 219 Initial . | . . . Average 39 | . 8 52 Influence Increases 507 | . 80 427 Destroy 0b10 Robot/C 240 | . 60 180 Destroy 0b10 Robot/NC 45 | . . 45 Destroy Leader 56 | . 10 46 Successful Hack 10 | . 5 5 Disable Machine 60 | . . 60 Destroy Structure 6 | . 5 1 Lose Combat Pursuer 90 | . . 90 Influence Decreases 358 | . 80 278 Time Decay 238 | . 70 168 Lost Part 120 | . 10 110 Squads Dispatched 1 | . 1 . Investigation 1 | . 1 . Extermination . | . . . Reinforcement . | . . . Assault . | . . . Garrison . | . . . Intercept . | . . . Searches Triggered . | . . . Construction Impeded . | . . . Haulers Reinforced . | . . . Active Scanning Responses . | . . . Cargo Convoy Interrupts . | . . . Stealth | -11 -10 -9 --------- Run | Yrd Mat Mat Distress Signals 5 | . . 5 Communications Jammed . | . . . Distress Signals . | . . . Times Spotted 29 | . 6 23 Peak Tracking Total 6 | . 3 6 Tactical Retreats 3 | . . 3 Traps | -11 -10 -9 ------- Run | Yrd Mat Mat Traps Triggered 7 | . 3 4 Indirectly . | . . . Trap Hack Attempts . | . . . Triggered . | . . . Disarmed . | . . . Reprogrammed . | . . . Reused . | . . . Traps Extracted . | . . . Installed . | . . . Triggered . | . . . Machines | -11 -10 -9 ---------- Run | Yrd Mat Mat Machines Disabled 4 | . . 4 Max in Single Turn 2 | . . 2 Machines Repaired . | . . . Machines Dismantled . | . . . Machines Sabotaged . | . . . Overloaded Fab Kills . | . . . Hacking | -11 -10 -9 --------- Run | Yrd Mat Mat Machines Accessed 6 | . 1 5 Terminals 3 | . 1 2 Fabricators . | . . . Repair Stations . | . . . Recycling Units 2 | . . 2 Scanalyzers 1 | . . 1 Garrison Access . | . . . Total Hacks 13 | . 4 9 Successful 11 | . 2 9 Failed 2 | . 2 . Catastrophic . | . . . Database Lockouts . | . . . Manual . | . . . Terminals 7 | . 4 3 Fabricators . | . . . Repair Stations . | . . . Recycling Units 3 | . . 3 Scanalyzers 3 | . . 3 Garrison Access . | . . . Terminal Hacks 5 | . 2 3 Prototype ID Bank 1 | . . 1 Emergency Access Points 1 | . . 1 Dispatch Records 1 | . 1 . Zone Layout 2 | . 1 1 Fabricator Hacks . | . . . Repair Station Hacks . | . . . Recycling Unit Hacks 3 | . . 3 Recycle Component 1 | . . 1 Process 1 | . . 1 Report Inventory 1 | . . 1 Scanalyzer 3 | . . 3 Insert Component 2 | . . 2 Analyze 1 | . . 1 Garrison Access Hacks . | . . . Unauthorized Hacks . | . . . Terminals . | . . . Fabricators . | . . . Repair Stations . | . . . Recycling Units . | . . . Scanalyzers . | . . . Garrison Access . | . . . Data Cores Recovered . | . . . Used . | . . . Hacking Detections 2 | . 1 1 Full Trace Events 1 | . 1 . Feedback Events . | . . . Feedback Blocked . | . . . Robot Schematics Acquired . | . . . Robots Built . | . . . Authchips . | . . . Time . | . . . Total Robot Build Rating . | . . . Part Schematics Acquired . | . . . Parts Built . | . . . Authchips . | . . . Time . | . . . Total Part Build Rating . | . . . Parts Repaired . | . . . Time . | . . . Parts Recycled 1 | . . 1 Recycled Matter 152 | . . 152 Retrieved Matter . | . . . Retrieved Components . | . . . Parts Scanalyzed 1 | . . 1 Part Schematics Acquired . | . . . Parts Damaged . | . . . Bothacking | -11 -10 -9 ------------ Run | Yrd Mat Mat Used RIF Installer . | . . . Robots Hacked . | . . . Non-combat . | . . . Combat . | . . . Robot Hacks Applied . | . . . Relay Couplers Released . | . . . Fabnet Peak Effective % . | . . . Robots Rewired . | . . . Allies Hacked . | . . . Hacks Repelled . | . . . Allies | -11 -10 -9 -------- Run | Yrd Mat Mat Total Allies . | . . . Largest Group . | . . . Highest-Rated Group . | . . . Highest-Rated Ally . | . . . Total Orders . | . . . Ally Attacks . | . . . Total Damage . | . . . Kills . | . . . Allies Corrupted . | . . . Allies Melted . | . . . Intel | -11 -10 -9 ------- Run | Yrd Mat Mat Active Infowar (turns) . | . . . Robot Analysis Total . | . . . Derelict Logs Recovered . | . . . Drone Launches . | . . . Drone Recoveries . | . . . Exploration | -11 -10 -9 ------------- Run | Yrd Mat Mat Turns Passed 1265 | 80 291 894 Spaces Moved 808 | 59 174 575 Core 71 | 15 . 56 Treads . | . . . Legs 737 | 44 174 519 Wheels . | . . . Hover . | . . . Flight . | . . . Fastest Speed 50 | 50 120 100 Average Speed 118 | 114 120 119 Slowest Speed 200 | 150 120 200 Overloaded Moves . | . . . Propulsion Burnouts . | . . . Robots Hopped . | . . . Potential Cave-ins . | . . . Cave-ins Triggered . | . . . Exploration Rate (%) 25 | 4 29 42 Regions Visited 2 Branch Regions . Pre-discovered Areas . | . . . Known Exits Taken . | . . . Unknown Exits Taken 2 | 1 1 . Scrap Searched . | . . . Spaces Dug . | . . . Terrain Destroyed 6 | . 5 1 Melee . | . . . Projectile . | . . . AOE 6 | . 5 1 Terrain Rammed . | . . . Walls Destroyed . | . . . Machines Disabled . | . . . Actions | -11 -10 -9 --------- Run | Yrd Mat Mat Total 988 | 71 225 692 Wait 38 | . 22 16 Move 806 | 58 173 575 Hop . | . . . Pick Up 26 | 7 7 12 Fast Attach . | . . . Attach 21 | 6 5 10 Detach 4 | . . 4 Swap 2 | . 1 1 Drop 7 | . . 7 Fire 76 | . 17 59 Melee . | . . . Ram 7 | . . 7 Kick 1 | . . 1 Crush . | . . . Escape Stasis . | . . . Rewire . | . . . Trap . | . . . Miscellaneous . | . . . Route ------- -11/Scrapyard -10/Materials -9/Materials History --------- Turn | Location | Event 2 | -11/Scrapyard | Met Revision 17 14 | -11/Scrapyard | Discovered new exit (range 15) 81 | -11/Scrapyard | Entered Materials 308 | -10/Materials | Build established: Mutant 359 | -10/Materials | Discovered new exit (range 11) 372 | -10/Materials | Entered another Materials area 372 | -9/Materials | Evolved 2 slots: Utility x1, Weapon x1 695 | -9/Materials | Build established: Gunner 1211 | -9/Materials | Core integrity fell below 50% 1249 | -9/Materials | Core integrity fell below 20% 1251 | -9/Materials | Lost 9 parts (1p2n2u4w) 1266 | -9/Materials | Destroyed by G-34 Mercenary with Small Laser Last Messages --------------- Lgt. Ion Engine (11) Wheel (12) Heat Sink (12) Visual Processing Unit (10) Aluminum Leg (22) Aluminum Leg (33) Aluminum Leg (28) Ion Engine (19) Imp. Targeting Computer destroyed. Carbon-fiber Leg destroyed. Sml. Laser destroyed. Slammed into A-02 Transporter. Destabilizing: System corrupted (+2). Slammed into A-02 Transporter. Destabilizing: Core damaged (-12). Slammed into A-02 Transporter. Core Shielding destroyed. K-01 Serf collects debris. System corrupted: Energy discharge (-21). Slammed into G-34 Mercenary. Map ----- +----------------------------------------------------+ | ????????????????# #??????## #+##### | | ????????????????# #??######+#?????? | | ????????????????# #??# #?????? | | ????????????????# #??# #?????? | | ????????????????# **#??# #?????? | | ???????????????## ***#??# #?????? | | ???????????????#T !** #??# #?????? | | ???????????????## /%! ##?# % ####### | | ?????????????#### = = %!########+## # | | ????????????##! % |*=% % # | | ????????????#! % %= " # | | ????????????#! % %% = # | | ????????????#! ###/########### # | | ????????????#! ###%###?? ????????## ## | | ????????????##! ??# #???? ???????# #? | | ?????????????##???# #???? == ??????# #? | | ??????????????????# #???? =! #?????# ^^#? | | ??????????????????# #???? #?????# ^#? | | ??????????????????# #?????" #?????# ## | | ??????????????????# #?????? #?????# | | ??????????????????# #??????? #?????# | | ??????????????????#%#??????? ??????# | | ??????????????????#%#????????????????# | | ??????????????????#%#????????????????## | | ????????????????###+####?#????????????# | | ????????????????# @%g # #????????????# | | ????????????????# """ + +????????????# | | ????????????????# "Y" # #????????????# | | ????????????????# #?#????????????# | | ????????????????# #??????????????# | | ????????????????# w #??????????????# | | ????????????????#+######??????????????# | | ??????????????? ???????????????????# | | ?????????????? ???????????????????# | | ????????????? ??????????????????###+# | | ??????????? #####??????????????????????? | | ??????????# #???????????????????????????? | | ??????????# ????????????????????????????? | | ??????????# ?????????????????????????????? | | ??????????# ??????????????????????????????? | | ??????????# ??????????????????????????????? | | ??????????????????????????????????????????? | | ??????????????????????????????????????????? | | ??????????????????????????????????????????? | | ??????????????????????????????????????????? | | ??????????????????????????????????????????? | | ??????????????????????????????????????????? | | ??????????????????????????????????????????? | | ??????????????????????????????????????????? | | ??????????????????????????????????????????? | +----------------------------------------------------+ Best States ------------- Heat Dissipation 28 Energy Generation 10 Energy Capacity 250 Matter Stores 300 Matter Capacity 300 Sight Range 16 Terrain Scan Density 10 Core Shielding 20 Evasion (%) 55 Targeting Accuracy 6 Item Schematics ----------------- None Robot Schematics ------------------ None Fabricated ------------ Nothing Repaired ---------- Nothing Alien Tech Used ----------------- None Achievements -------------- None Challenges ------------ None Game ------ Seed OvertunedMetafieldBoomstick Manual? 0 Play Time 00:21:21 Cumulative 10.2 hours Start 2025.05.07 @ 22:56:10 End 2025.07.21 @ 22:53:55 Sessions 3 Manual Loads 0 Difficulty Rogue Special Mode None Game No. 34 Rogue 34 Adventurer 0 Explorer 0 Win Type - Total 0 Types 0/0/0/0/0/0/0/0/0/0 Lore% 1 Gallery% 11 Achievement% 10 Wizard Run 0 Options --------- Layout 1 ASCII 0 Keyboard 1 Movement Numpad Keybinds 0 Fullscreen 1 Font 32/SmallcapsGlow Map View 50x35 Zoom Use 0% Tactical HUD 0 Map Filters NONE Filters NONE Steam 1 RUN: e59d283d-b3f7-4ab6-8aee-b66a5530da83